Cogmind - Beta 9.6 @@@ ROGUE MODE // 2020.05.24 @ 20:22:05 Player: Demise Result: Destroyed by H-77 Assassin with Coil Gun Performance ------------- Evolutions (6) 3000 Regions Visited (16) 3200 Robots Destroyed (125) 625 Value Destroyed (4797) 4797 Prototype IDs (38) 760 Alien Tech Used (0) 0 Bonus (3548) 3548 TOTAL SCORE: 15930 Bonus ------- High Alert Combat Kills 146 Follower Combat Kills 1279 Entered Garrisons 600 Used RIF Installer 1500 Aligned with FarCom 300 Friendly Fire -277 Cogmind --------- Core Integrity 0/1150 Matter 300/300 Energy 380/380 System Corruption 9% Temperature Cool (0) Movement Rolling (100) Location -4/Extension Parts ------- > --- POWER (2) -------- Fission Core Micro Fission Core > --- PROPULSION (5) --- Compact Wheel Compact Wheel Compact Wheel Compact Wheel Compact Wheel > --- UTILITY (10) ----- Advanced Thermal Generator Medium Storage Unit Medium Storage Unit Experimental Signal Interpreter Hardened Light Armor Plating Hardened Light Armor Plating Hardened Light Armor Plating Hardened Light Armor Plating Improved Light Armor Plating High-powered Tractor Beam > --- WEAPON (2) ------- Phasing Sabre Phasing Sabre > --- INVENTORY (12) --- Compact Wheel Hardened Light Armor Plating Hardened Light Armor Plating Hardened Light Armor Plating Hardened Light Armor Plating Improved Light Armor Plating Thermal Shield Point Defense System Improved System Shield Long-range Proton Cannon KE Penetrator Phasing Sabre Peak State ------------ > --- POWER ------------ Improved Ion Engine Antimatter Reactor > --- PROPULSION ------- Cooled Aerolev Unit Gravmag Array Linear Gravjet > --- UTILITY ---------- Medium Storage Unit Improved Energy Well Inertial Stasis Machine Experimental Signal Interpreter Long-range Terrain Scanner Quantum Capacitor Transmission Jammer Powered Armor System Shield > --- WEAPON ----------- Lance Lance > --- INVENTORY -------- Improved Kinecellerator Improved Light Armor Plating Improved Light Armor Plating Heavy Tesla Rifle Hypervelocity Gauss Rifle KE Penetrator Enhanced Coil Gun Micro-nuke Launcher [Rating: 97] Favorites ----------- Power Light Nuclear Core Engine Improved Deuterium Engine Power Core Light Nuclear Core Reactor Antimatter Reactor Propulsion Armored Wheel Treads Armored Treads Leg Carbon-fiber Leg Wheel Armored Wheel Hover Unit Combat Airjet Flight Unit Nuclear Pulse Thruster Utility High-capacity Storage Unit Device Improved Heat Sink Storage High-capacity Storage Unit Processor Advanced Visual Processing Unit Hackware Hacking Suite Protection Hardened Light Armor Plating Weapon Scythe Energy Gun Particle Gun Energy Cannon Phase Cannon Ballistic Gun Gauss Rifle Ballistic Cannon Assault Cannon Launcher Precision Grenade Launcher Special Weapon Remote Datajack Impact Weapon Great Maul Slashing Weapon Scythe Piercing Weapon Lance Build | -11 -10 -10 -10 -9 -8 -8 -8 -7 -7 -7 -6 -6 -6 -5 -4 -4 ------- Run | Scr Mat Min Exi Min Mat Gar Mat Fac Sto Gar Fac Gar Fac Fac Fac Ext Slots Evolved 12 | . . . . . 4 . . 2 . . 2 . . 2 2 . Power 1 | . . . . . . . . . . . . . . 1 . . Propulsion 3 | . . . . . . . . 1 . . . . . . 2 . Utility 8 | . . . . . 4 . . 1 . . 2 . . 1 . . Weapon . | . . . . . . . . . . . . . . . . . Parts Attached 234 | 3 3 6 3 . 8 21 12 19 15 35 6 15 36 4 18 30 Power 25 | . . 2 . . 1 4 2 2 2 4 1 . 1 . 4 2 Engine 12 | . . 2 . . 1 1 . 2 . 3 . . 1 . 2 . Core 11 | . . . . . . 3 2 . 2 1 1 . . . . 2 Reactor 2 | . . . . . . . . . . . . . . . 2 . Propulsion 46 | 2 1 2 . . . 2 . 5 2 7 2 . 11 2 1 9 Treads 9 | . 1 . . . . 2 . 5 1 . . . . . . . Leg 4 | . . . . . . . . . . . . . 1 . . 3 Wheel 18 | 2 . . . . . . . . . 7 2 . 1 . . 6 Hover 12 | . . 2 . . . . . . 1 . . . 6 2 1 . Flight 3 | . . . . . . . . . . . . . 3 . . . Utility 85 | 1 . . 2 . 6 5 5 4 4 7 3 8 15 2 7 16 Device 22 | . . . . . 2 1 . 1 . . . 1 7 1 7 2 Storage 15 | 1 . . 2 . . 1 2 1 . 2 . 2 1 1 . 2 Processor 8 | . . . . . 2 1 1 1 . . 1 . 2 . . . Hackware 17 | . . . . . . . 1 . 4 5 2 3 2 . . . Protection 23 | . . . . . 2 2 1 1 . . . 2 3 . . 12 Artifact . | . . . . . . . . . . . . . . . . . Weapon 78 | . 2 2 1 . 1 10 5 8 7 17 . 7 9 . 6 3 Energy Gun 10 | . . . . . . 1 . . . 4 . 1 3 . 1 . Energy Cannon 1 | . . . . . . . . . . . . . 1 . . . Ballistic Gun 31 | . 2 1 1 . . 1 3 6 3 6 . 5 1 . 1 1 Ballistic Cannon 7 | . . . . . 1 4 2 . . . . . . . . . Launcher 13 | . . 1 . . . 4 . . 2 4 . 1 . . 1 . Special Weapon 4 | . . . . . . . . 1 1 2 . . . . . . Impact Weapon 1 | . . . . . . . . . . . . . 1 . . . Slashing Weapon 7 | . . . . . . . . 1 1 1 . . 2 . . 2 Piercing Weapon 4 | . . . . . . . . . . . . . 1 . 3 . Special Melee Weapon . | . . . . . . . . . . . . . . . . . Unidentified Prototypes 14 | . . . . . . . 1 . 4 . 1 . 3 1 4 . Parts Lost 62 | . . 4 . . 1 4 1 . 7 8 . 12 9 . 15 1 Power 6 | . . 1 . . . . . . 1 1 . 1 . . 2 . Propulsion 12 | . . 2 . . . . . . 3 2 . 3 . . 2 . Utility 18 | . . . . . . 2 . . 2 . . 1 5 . 8 . Weapon 26 | . . 1 . . 1 2 1 . 1 5 . 7 4 . 3 1 Highest Loss Streak 15 | . . 4 . . 1 2 1 . 5 7 . 12 5 . 15 1 Average Slot Usage (%) 90 | . 100 89 88 100 98 99 98 96 88 96 95 79 71 86 73 67 Engine 3 | . 14 10 14 14 8 . . 4 4 3 . . 4 5 2 . Core 3 | . . . . . . 8 9 2 2 3 6 3 . . . 7 Treads 5 | . 2 10 . . . 2 18 20 13 . . . . . . . Wheel 6 | . 25 10 . . . . . . . 22 20 14 . . . 14 Hover 6 | . . 3 28 28 18 15 . . 1 . . . 8 11 12 . Device 4 | . . . . . 11 . . 2 . . . 1 15 23 18 5 Storage 21 | . 28 28 28 28 18 22 27 25 30 33 26 24 4 9 8 5 Processor 9 | . . . . . 17 20 18 15 2 . 2 6 11 5 5 5 Hackware 6 | . . . . . . . . 7 16 16 25 16 3 5 4 . Protection 4 | . . . . . 5 10 8 1 . . . . 5 11 6 14 Ballistic Gun 6 | . 20 23 16 28 15 7 9 9 6 1 . 1 . . . . Ballistic Cannon 1 | . . . . . 1 8 4 . . . . . . . . . Special Weapon 1 | . . . . . . . . 1 3 5 6 3 . . . . Slashing Weapon 2 | . . . . . . . . 3 . 4 6 4 1 5 1 8 Naked Turns . | . . . . . . . . . . . . . . . . . Heaviest Build 170 | 15 19 19 73 73 85 98 114 146 148 163 138 170 41 45 61 77 Greatest Support 80 | 20 20 44 44 44 44 44 40 60 60 36 36 36 43 43 71 80 Greatest Overweight (x) 12 | . . 3 1 1 1 2 2 7 7 12 5 6 4 1 5 4 Average Overweight (x) 1 | . . . . 1 1 1 2 1 3 3 3 2 . . . . Largest Inventory Capacity 44 | 8 8 8 20 20 20 26 28 36 36 42 36 44 8 8 8 12 Average Capacity 22 | 7 8 8 18 20 20 23 27 30 36 38 36 34 6 8 7 8 Most Carried 39 | 8 8 8 9 9 18 26 28 34 35 38 36 39 8 8 8 12 Average Carried 20 | 6 7 8 8 9 13 22 27 28 32 34 35 30 6 7 7 6 Final Capacity 36 | 8 8 8 20 20 20 26 28 36 36 36 36 4 8 8 4 12 Final Carried 36 | 8 8 8 9 9 18 26 27 33 31 36 36 4 8 8 4 12 Class Distribution -------------------- 34% | Bothacker-Mutant 27% | Hauler-Mutant 12% | Mutant 11% | Scavenger-Mutant 3% | Assassin 3% | Bothacker-Assassin Dominant Class ---------------- Mutant | -10/Materials Mutant | -10/Mines Hauler-Mutant | -10/Exiles Hauler-Mutant | -9/Mines Scavenger-Skirmisher | -8/Materials Hauler-Mutant | -8/Garrison Hauler-Mutant | -8/Materials Bothacker-Mutant | -7/Factory Bothacker-Mutant | -7/Storage Bothacker-Mutant | -7/Garrison Bothacker-Mutant | -6/Factory Bothacker-Mutant | -6/Garrison Scavenger-Mutant | -6/Factory Assassin | -5/Factory Ninja | -4/Factory Scavenger-Mutant | -4/Extension Resources | -11 -10 -10 -10 -9 -8 -8 -8 -7 -7 -7 -6 -6 -6 -5 -4 -4 ----------- Run | Scr Mat Min Exi Min Mat Gar Mat Fac Sto Gar Fac Gar Fac Fac Fac Ext Matter Collected 5334 | 390 407 196 . . 184 618 553 619 376 757 55 58 408 . 183 530 Remotely 105 | . . . . . . . . . . . . . . . . 105 Salvage Created 4545 | 215 134 136 . . 248 506 414 708 287 855 . 28 345 . 375 294 Parts 266 | 16 15 16 . . 7 31 28 30 17 35 . 2 18 . 37 14 Haulers Intercepted 7 | . 1 . . . 2 . . 3 . . . . . . 1 . Recyclers Shooed 2 | 1 . . . . . . . . . . . . 1 . . . Parts Field Recycled . | . . . . . . . . . . . . . . . . . Retrieved Matter . | . . . . . . . . . . . . . . . . . Parts Self-Destructed . | . . . . . . . . . . . . . . . . . Prevented . | . . . . . . . . . . . . . . . . . Kills | -11 -10 -10 -10 -9 -8 -8 -8 -7 -7 -7 -6 -6 -6 -5 -4 -4 ------- Run | Scr Mat Min Exi Min Mat Gar Mat Fac Sto Gar Fac Gar Fac Fac Fac Ext Combat Hostiles Destroyed 77 | . 3 8 . . 2 19 11 3 5 9 . 2 6 . 9 . Melee 4 | . . . . . . . . . . . . . 2 . 2 . Guns 38 | . 3 7 . . 1 5 9 3 5 2 . 2 1 . . . Cannons 10 | . . . . . 1 4 2 . . . . . 3 . . . AOE 24 | . . 1 . . . 10 . . . 7 . . . . 6 . Classes Destroyed 16 | 3 3 . . . 2 3 1 1 . 1 . 2 . . . . Worker 8 | 2 . . . . . . 1 2 . . . . 1 . 2 . Builder 14 | . 2 . . . . . . 3 . . . . . . 8 1 Tunneler 6 | 5 . 1 . . . . . . . . . . . . . . Hauler 7 | . 1 . . . 2 . . 3 . . . . . . 1 . Recycler 8 | 1 . . . . . . . 4 . . . . 1 . . 2 Operator 1 | . . . . . . . 1 . . . . . . . . . Watcher 2 | . . . . . 1 . . . 1 . . . . . . . Swarmer 37 | . 3 8 . . . 8 2 . 2 6 . . 4 . 4 . Grunt 22 | . . . . . 2 7 4 2 3 . . . . . 4 . Duelist 1 | . . . . . . 1 . . . . . . . . . . Protector 1 | . . . . . . . . . . . . 1 . . . . Sentry 10 | . . . . . . 2 3 . . 3 . . 1 . 1 . Demolisher 1 | . . . . . . . . . . . . 1 . . . . Specialist 1 | . . . . . . . . . . 1 . . . . . . Hunter 3 | . . . . . . 1 2 . . . . . . . . . Programmer 3 | . . . . . . . . 1 1 . . . 1 . . . Best Kill Streak 19 | 4 4 2 . . 2 6 5 3 4 6 . 2 2 . 19 1 Combat Bots Only 9 | . 3 2 . . 2 6 5 2 4 6 . 2 2 . 9 . Max Kills in Single Turn 6 | 1 2 2 . . 1 4 2 2 1 2 . 1 1 . 6 1 Gunslinging 1 | . . . . . . . 1 . . . . . . . . . Exploded 4 | . . 1 . . . 4 . . . 2 . . . . 2 . Melee 1 | . . . . . . . . . . . . . 1 . 1 . Uniques/NPCs Destroyed . | . . . . . . . . . . . . . . . . . Combat | -11 -10 -10 -10 -9 -8 -8 -8 -7 -7 -7 -6 -6 -6 -5 -4 -4 -------- Run | Scr Mat Min Exi Min Mat Gar Mat Fac Sto Gar Fac Gar Fac Fac Fac Ext Damage Taken 11002 | . 48 768 . . 249 881 925 441 589 1504 . 2012 856 26 1938 765 Core 3056 | . 6 241 . . 14 140 131 81 89 382 . 623 183 . 612 554 Absorbed by Shields 61 | . . . . . . . . . . 61 . . . . . . Core Remaining (%) 45 | 100 . . . 1 . . 48 . . 21 . . 5 100 . . Volleys Fired 374 | 27 7 24 . . 23 82 48 28 29 47 7 23 17 . 12 . Largest 2 | 2 2 2 . . 2 2 2 2 2 2 1 2 2 . 1 . Hottest 165 | 60 60 53 . . 67 67 109 56 56 91 30 56 165 . 70 . Shots Fired 585 | 54 14 44 . . 45 125 81 53 42 59 7 28 21 . 12 . Gun 396 | 54 14 42 . . 39 52 57 51 33 25 . 19 4 . 6 . Cannon 109 | . . . . . 6 62 24 . . . . . 17 . . . Launcher 33 | . . 2 . . . 11 . . . 13 . 1 . . 6 . Special 47 | . . . . . . . . 2 9 21 7 8 . . . . Kinetic 433 | 27 13 42 . . 45 114 70 51 33 19 . 19 . . . . Thermal 62 | 27 1 . . . . . 11 . . 2 . . 21 . . . Explosive 29 | . . 2 . . . 11 . . . 9 . 1 . . 6 . Electromagnetic 14 | . . . . . . . . . . 8 . . . . 6 . Robot Hit Streak 21 | 10 8 3 . . 8 21 12 16 17 4 11 8 8 . 7 . Robot Miss Streak 7 | 2 2 4 . . 3 3 7 4 2 4 . 3 4 . 2 . Penetration Max 1 | . . . . . . . 1 1 . . . 1 . . . . Secondary Targets 5 | . . . . . . . 1 . 3 1 . . . . . . Max Gunslinging Chain 1 | . . . . . . . 1 . 1 1 . . . . . . Shots Hit Robots 424 | 35 8 16 . . 28 81 63 35 30 54 7 18 26 . 16 7 Core Hits 232 | 13 7 10 . . 9 43 31 18 11 29 . 11 10 . 35 5 Critical Hits 5 | . . . . . . 1 . 1 1 1 . . . . . 1 Critical Kills 3 | . . . . . . 1 . . 1 . . . . . . 1 Critical Parts Destroyed 2 | . . . . . . . . 1 . 1 . . . . . . Melee Attacks 162 | . . . . . . . . 8 1 47 . 2 66 . 22 16 Impact 6 | . . . . . . . . . . . . . 6 . . . Slashing 123 | . . . . . . . . 8 1 47 . 2 45 . 4 16 Piercing 33 | . . . . . . . . . . . . . 15 . 18 . Sneak Attacks 9 | . . . . . . . . 2 . . . . 1 . 3 3 Combat Hostiles . | . . . . . . . . . . . . . . . . . Follow-up Attacks 2 | . . . . . . . . . . . . . . . 2 . Damage Inflicted 13390 | 321 137 333 . . 383 1930 1114 1090 634 2842 . 524 910 . 2593 579 Guns 4562 | 321 137 256 . . 337 401 823 867 634 228 . 342 54 . 162 . Cannons 1471 | . . . . . 46 747 291 . . . . . 387 . . . Explosions 3806 | . . 77 . . . 782 . . . 801 . 151 . . 1995 . Melee 3545 | . . . . . . . . 217 . 1813 . 31 469 . 436 579 Ramming 6 | . . . . . . . . 6 . . . . . . . . Kinetic 5037 | 83 137 256 . . 383 1148 1006 867 634 181 . 342 . . . . Thermal 836 | 238 . . . . . . 108 . . 49 . . 441 . . . Explosive 3508 | . . 77 . . . 782 . . . 503 . 151 . . 1995 . Electromagnetic 458 | . . . . . . . . . . 296 . . . . 162 . Impact . | . . . . . . . . . . . . . . . . . Slashing 3109 | . . . . . . . . 217 . 1813 . 31 469 . . 579 Piercing 436 | . . . . . . . . . . . . . . . 436 . Highest Corruption 12 | . . . . . . . 4 . 3 5 . . 12 . 9 9 Average Corruption 6 | . . . . . . . 4 . 2 4 . . 11 . 9 9 Corruption Purged . | . . . . . . . . . . . . . . . . . Effects 105 | . . . . . . . 12 . 2 48 . . 23 . 3 17 Message Errors 14 | . . . . . . . 1 . . 5 . . 4 . . 4 Matter Fused 27 | . . . . . . . 6 . . 14 . . 5 . . 2 Heat Flow Errors 13 | . . . . . . . . . 1 9 . . 1 . . 2 Energy Discharges 8 | . . . . . . . . . 1 4 . . 1 . . 2 Parts Rejected 3 | . . . . . . . . . . . . . 1 . 2 . Data Loss (minor) 11 | . . . . . . . 3 . . 3 . . 2 . . 3 Data Loss (major) 5 | . . . . . . . . . . 3 . . . . 1 1 Misfires 2 | . . . . . . . . . . 2 . . . . . . Misdirections 4 | . . . . . . . . . . . . . 4 . . . Targeting Errors 18 | . . . . . . . 2 . . 8 . . 5 . . 3 Overload Shots . | . . . . . . . . . . . . . . . . . Overflow Damage 525 | . . . . . . 23 . . . 247 . . 42 . 213 . Projectiles 22 | . . . . . . 22 . . . . . . . . . . Explosions 196 | . . . . . . 1 . . . 70 . . . . 125 . Melee 307 | . . . . . . . . . . 177 . . 42 . 88 . Knockbacks 22 | . . . . . 1 5 16 . . . . . . . . . Impact . | . . . . . . . . . . . . . . . . . Kinetic 22 | . . . . . 1 5 16 . . . . . . . . . Secondary . | . . . . . . . . . . . . . . . . . Self-Inflicted Damage 573 | . . . . . . 40 . . . 233 . 20 . . 280 . Shots 14 | . . . . . . 1 . . . 7 . 1 . . 5 . Rammed 1 | . . . . . . . . 1 . . . . . . . . Targets Rammed 1 | . . . . . . . . 1 . . . . . . . . Kicked . | . . . . . . . . . . . . . . . . . Crushed . | . . . . . . . . . . . . . . . . . Highest Temperature 391 | 80 20 . . . 122 232 355 6 95 231 . 9 214 . 78 391 Average Temperature 83 | 37 15 . . . 51 71 146 4 20 64 . 6 96 . 33 223 Received Heat Transfer 1980 | . . . . . 144 342 135 189 162 273 . 342 48 . 192 153 Effects 7 | . . . . . . . 1 . . . . . 1 . . 5 Shutdowns 1 | . . . . . . . . . . . . . . . . 1 Energy Bleed 1 | . . . . . . . . . . . . . . . . 1 Interference 2 | . . . . . . . . . . . . . 1 . . 1 Matter Decay 1 | . . . . . . . . . . . . . . . . 1 Damage (minor) 2 | . . . . . . . 1 . . . . . . . . 1 Siege Activations . | . . . . . . . . . . . . . . . . . Robots Corrupted 1 | . . . . . . . . . . . . . . . 1 . Combat Hostiles 1 | . . . . . . . . . . . . . . . 1 . Parts Fried 1 | . . . . . . . . . . 1 . . . . . . Impact Corruptions . | . . . . . . . . . . . . . . . . . Robots Melted . | . . . . . . . . . . . . . . . . . Combat Hostiles . | . . . . . . . . . . . . . . . . . Parts Melted 4 | 2 . . . . . . . . . . . . 2 . . . Heat Transferred 1477 | 550 . . . . . . 259 . . 100 . . 568 . . . Parts Sabotaged . | . . . . . . . . . . . . . . . . . Parts Stolen . | . . . . . . . . . . . . . . . . . Parts Stripped . | . . . . . . . . . . . . . . . . . Power Chain Reactions 1 | . . . . . . . . . . 1 . . . . . . Missiles Intercepted . | . . . . . . . . . . . . . . . . . Alert | -11 -10 -10 -10 -9 -8 -8 -8 -7 -7 -7 -6 -6 -6 -5 -4 -4 ------- Run | Scr Mat Min Exi Min Mat Gar Mat Fac Sto Gar Fac Gar Fac Fac Fac Ext Peak Influence 908 | 40 165 249 . . 128 908 569 254 147 749 850 428 240 40 373 213 Average Influence 293 | 22 81 179 . . 32 625 413 113 68 414 585 348 78 32 105 167 Maximum Alert Level 3 | . . 1 . . . 3 2 1 . 3 3 2 1 . 1 1 Low Security (%) 47 | 100 100 62 . 100 100 10 . 65 100 26 . . 90 100 81 37 Level 1 20 | . . 37 . . . 13 50 34 . 14 12 58 9 . 18 62 Level 2 19 | . . . . . . 22 49 . . 42 64 41 . . . . Level 3 12 | . . . . . . 53 . . . 16 23 . . . . . Level 4 . | . . . . . . . . . . . . . . . . . Level 5 . | . . . . . . . . . . . . . . . . . High Security . | . . . . . . . . . . . . . . . . . Max Security . | . . . . . . . . . . . . . . . . . Squads Dispatched 22 | . 2 . . . 1 . 3 2 3 . 1 . 5 2 2 1 Investigation 8 | . 1 . . . . . 1 . 1 . . . 3 1 1 . Extermination 6 | . . . . . . . . 1 1 . 1 . 1 1 1 . Reinforcement 7 | . 1 . . . . . 2 1 1 . . . 1 . . 1 Assault . | . . . . . . . . . . . . . . . . . Garrison 1 | . . . . . 1 . . . . . . . . . . . Intercept . | . . . . . . . . . . . . . . . . . Construction Impeded 1 | . . . . . . . . 1 . . . . . . . . Haulers Reinforced 1 | . . . . . . . . . 1 . . . . . . . Stealth | -11 -10 -10 -10 -9 -8 -8 -8 -7 -7 -7 -6 -6 -6 -5 -4 -4 --------- Run | Scr Mat Min Exi Min Mat Gar Mat Fac Sto Gar Fac Gar Fac Fac Fac Ext Distress Signals 8 | . 1 . . . . . 2 . 1 1 . . . . 2 1 Communications Jammed 1 | . . . . . . . . . . . . . . . 1 . Distress Signals 1 | . . . . . . . . . . . . . . . 1 . Times Spotted 191 | . 5 15 . . 5 20 21 6 12 38 13 12 13 2 24 5 Peak Tracking Total 13 | . 3 3 . . 3 5 4 3 5 7 6 8 3 1 13 2 Tactical Retreats 13 | . . 2 . . . 1 3 . 1 1 . . 2 1 2 . Traps | -11 -10 -10 -10 -9 -8 -8 -8 -7 -7 -7 -6 -6 -6 -5 -4 -4 ------- Run | Scr Mat Min Exi Min Mat Gar Mat Fac Sto Gar Fac Gar Fac Fac Fac Ext Traps Triggered 30 | . 1 . . . 1 10 . 4 2 7 1 2 2 . . . Indirectly . | . . . . . . . . . . . . . . . . . Trap Hack Attempts . | . . . . . . . . . . . . . . . . . Triggered . | . . . . . . . . . . . . . . . . . Disarmed . | . . . . . . . . . . . . . . . . . Reprogrammed 4 | . . . . . . . . 4 . . . . . . . . Reused . | . . . . . . . . . . . . . . . . . Traps Extracted . | . . . . . . . . . . . . . . . . . Installed . | . . . . . . . . . . . . . . . . . Triggered . | . . . . . . . . . . . . . . . . . Machines | -11 -10 -10 -10 -9 -8 -8 -8 -7 -7 -7 -6 -6 -6 -5 -4 -4 ---------- Run | Scr Mat Min Exi Min Mat Gar Mat Fac Sto Gar Fac Gar Fac Fac Fac Ext Machines Disabled 24 | . . . . . 1 4 3 . 2 4 1 1 2 . 6 . Max in Single Turn 3 | . . . . . 1 1 1 . 1 1 . 1 1 . 3 . Garrison Access 3 | . . . . . . . . . . . . . 1 1 1 . Garrison Relay 8 | . . . . . . 4 . . . 3 . 1 . . . . Machines Sabotaged . | . . . . . . . . . . . . . . . . . Garrisons Compromised . | . . . . . . . . . . . . . . . . . Overloaded Fab Kills . | . . . . . . . . . . . . . . . . . Fab Network Shutdowns . | . . . . . . . . . . . . . . . . . Hacking | -11 -10 -10 -10 -9 -8 -8 -8 -7 -7 -7 -6 -6 -6 -5 -4 -4 --------- Run | Scr Mat Min Exi Min Mat Gar Mat Fac Sto Gar Fac Gar Fac Fac Fac Ext Machines Accessed 42 | . 4 . 2 . 2 . 4 4 4 . 5 . 7 4 5 1 Terminals 25 | . 4 . . . 1 . 2 3 3 . 3 . 3 2 3 1 Fabricators 2 | . . . . . . . . . . . 1 . . 1 . . Repair Stations 1 | . . . . . . . . . . . . . 1 . . . Recycling Units 4 | . . . . . . . 1 . . . . . 2 . 1 . Scanalyzers 2 | . . . . . . . 1 1 . . . . . . . . Garrison Access 6 | . . . . . 1 . . . 1 . 1 . 1 1 1 . Total Hacks 105 | . 12 . 2 . 4 . 12 20 8 . 9 . 16 10 10 2 Successful 69 | . 7 . 2 . 3 . 9 18 4 . 7 . 7 4 7 1 Failed 35 | . 4 . . . 1 . 3 2 4 . 2 . 9 6 3 1 Catastrophic 10 | . 1 . . . 1 . 1 1 1 . . . 3 1 1 . Database Lockouts 1 | . 1 . . . . . . . . . . . . . . . Manual 51 | . 11 . 1 . 3 . 6 4 6 . 3 . 9 6 2 . Terminals 67 | . 12 . . . 3 . 6 8 7 . 6 . 9 6 8 2 Fabricators 5 | . . . . . . . . . . . 2 . . 3 . . Repair Stations 3 | . . . . . . . . . . . . . 3 . . . Recycling Units 6 | . . . . . . . 2 . . . . . 3 . 1 . Scanalyzers 16 | . . . . . . . 4 12 . . . . . . . . Garrison Access 6 | . . . . . 1 . . . 1 . 1 . 1 1 1 . Terminal Hacks 16 | . 3 . 2 . . . 1 2 1 . 2 . 1 . 3 1 Record 2 | . . . 1 . . . . . . . . . . . 1 . Part Schematic 3 | . 2 . . . . . 1 . . . . . . . . . Prototype ID Bank 1 | . 1 . . . . . . . . . . . . . . . Open Door 3 | . . . . . . . . . 1 . . . . . 1 1 Level Access Points 1 | . . . . . . . . . . . . . 1 . . . Branch Access Points 3 | . . . . . . . . 1 . . 1 . . . 1 . Unreport Threat 1 | . . . . . . . . . . . 1 . . . . . Reprogram Traps 1 | . . . . . . . . 1 . . . . . . . . EX-Prototype ID Bank 1 | . . . 1 . . . . . . . . . . . . . Fabricator Hacks 3 | . . . . . . . . . . . 2 . . 1 . . Load Schematic 2 | . . . . . . . . . . . 1 . . 1 . . Build 1 | . . . . . . . . . . . 1 . . . . . Repair Station Hacks 1 | . . . . . . . . . . . . . 1 . . . Scan Component 1 | . . . . . . . . . . . . . 1 . . . Recycling Unit Hacks 4 | . . . . . . . 2 . . . . . 1 . 1 . Process 1 | . . . . . . . . . . . . . . . 1 . Report Inventory 1 | . . . . . . . 1 . . . . . . . . . Retrieve Components 2 | . . . . . . . 1 . . . . . 1 . . . Scanalyzer 15 | . . . . . . . 3 12 . . . . . . . . Insert Component 7 | . . . . . . . 1 6 . . . . . . . . Analyze 8 | . . . . . . . 2 6 . . . . . . . . Garrison Access Hacks 6 | . . . . . 1 . . . 1 . 1 . 1 1 1 . Unlock Access 3 | . . . . . 1 . . . 1 . 1 . . . . . Seal Access 3 | . . . . . . . . . . . . . 1 1 1 . Unauthorized Hacks 24 | . 4 . . . 2 . 3 4 2 . 2 . 3 2 2 . Terminals 24 | . 4 . . . 2 . 3 4 2 . 2 . 3 2 2 . Track 5 | . 2 . . . 1 . 1 1 . . . . . . . . Assimilate 1 | . . . . . . . . . . . . . 1 . . . Botnet 18 | . 2 . . . 1 . 2 3 2 . 2 . 2 2 2 . Fabricators . | . . . . . . . . . . . . . . . . . Repair Stations . | . . . . . . . . . . . . . . . . . Recycling Units . | . . . . . . . . . . . . . . . . . Scanalyzers . | . . . . . . . . . . . . . . . . . Garrison Access . | . . . . . . . . . . . . . . . . . Data Cores Recovered 1 | . . . . . . . 1 . . . . . . . . . Used 1 | . . . . . . . 1 . . . . . . . . . Hacking Detections 31 | . 4 . . . 2 . 3 4 3 . 4 . 4 3 3 1 Full Trace Events 6 | . 1 . . . . . 1 . 1 . . . 1 1 1 . Feedback Events 2 | . . . . . . . . . 1 . . . 1 . . . Hackware Fried 2 | . . . . . . . . . 1 . . . 1 . . . Feedback Blocked . | . . . . . . . . . . . . . . . . . Robot Schematics Acquired . | . . . . . . . . . . . . . . . . . Robots Built . | . . . . . . . . . . . . . . . . . Matter . | . . . . . . . . . . . . . . . . . Time . | . . . . . . . . . . . . . . . . . Total Robot Build Rating . | . . . . . . . . . . . . . . . . . Part Schematics Acquired 9 | . 2 . . . . . 2 5 . . . . . . . . Parts Built 1 | . . . . . . . . . . . 1 . . . . . Matter 102 | . . . . . . . . . . . 102 . . . . . Time 25 | . . . . . . . . . . . 25 . . . . . Total Part Build Rating 1 | . . . . . . . . . . . 1 . . . . . Parts Repaired . | . . . . . . . . . . . . . . . . . Time . | . . . . . . . . . . . . . . . . . Parts Recycled . | . . . . . . . . . . . . . . . . . Recycled Matter . | . . . . . . . . . . . . . . . . . Retrieved Matter . | . . . . . . . . . . . . . . . . . Retrieved Components 3 | . . . . . . . 3 . . . . . . . . . Parts Scanalyzed 6 | . . . . . . . 1 5 . . . . . . . . Part Schematics Acquired 6 | . . . . . . . 1 5 . . . . . . . . Parts Damaged . | . . . . . . . . . . . . . . . . . Bothacking | -11 -10 -10 -10 -9 -8 -8 -8 -7 -7 -7 -6 -6 -6 -5 -4 -4 ------------ Run | Scr Mat Min Exi Min Mat Gar Mat Fac Sto Gar Fac Gar Fac Fac Fac Ext Used RIF Installer 3 | . . . . . . 1 . . . 1 . 1 . . . . Coupler Efficiency 2 | . . . . . . . . . . 1 . 1 . . . . Robots Hacked 23 | . . . . . . . . 1 4 8 5 5 . . . . Non-combat 2 | . . . . . . . . 1 . . 1 . . . . . Combat 21 | . . . . . . . . . 4 8 4 5 . . . . Robot Hacks Applied 23 | . . . . . . . . 1 4 8 5 5 . . . . parse_system 1 | . . . . . . . . 1 . . . . . . . . amplify_resonance 1 | . . . . . . . . . . . 1 . . . . . formatsys_low 1 | . . . . . . . . . . . 1 . . . . . formatsys_high 20 | . . . . . . . . . 4 8 3 5 . . . . Relay Couplers Released 30 | . . . . . . 13 . . . 12 . 5 . . . . Machine Destruction 30 | . . . . . . 13 . . . 12 . 5 . . . . Attached 13 | . . . . . . . . . 3 5 2 3 . . . . Robots Rewired 11 | . . . . . . . . . . 9 . . . . . 2 Allies Hacked . | . . . . . . . . . . . . . . . . . Hacks Repelled . | . . . . . . . . . . . . . . . . . Allies | -11 -10 -10 -10 -9 -8 -8 -8 -7 -7 -7 -6 -6 -6 -5 -4 -4 -------- Run | Scr Mat Min Exi Min Mat Gar Mat Fac Sto Gar Fac Gar Fac Fac Fac Ext Total Allies 34 | . . . . . . . . . 4 17 4 5 1 . . 3 Largest Group 10 | . . . . . . . . . 2 10 8 10 1 1 . 2 Highest-Rated Group 261 | . . . . . . . . . 53 261 218 254 10 10 . 78 Highest-Rated Ally 49 | . . . . . . . . . 32 38 47 38 10 10 . 49 Total Orders 5 | . . . . . . . . . . . 3 2 . . . . GOTO 3 | . . . . . . . . . . . 1 2 . . . . FOLLOW 1 | . . . . . . . . . . . 1 . . . . . AID 1 | . . . . . . . . . . . 1 . . . . . Ally Attacks 187 | . . . . . . . . . 9 83 50 27 . . . 18 Total Damage 4563 | . . . . . . . . . 243 1781 1364 618 . . . 557 Kills 43 | . . . . . . . . . 1 20 15 3 . . . 4 Allies Corrupted . | . . . . . . . . . . . . . . . . . Allies Melted . | . . . . . . . . . . . . . . . . . Intel | -11 -10 -10 -10 -9 -8 -8 -8 -7 -7 -7 -6 -6 -6 -5 -4 -4 ------- Run | Scr Mat Min Exi Min Mat Gar Mat Fac Sto Gar Fac Gar Fac Fac Fac Ext Robot Analysis Total . | . . . . . . . . . . . . . . . . . Derelict Logs Recovered . | . . . . . . . . . . . . . . . . . Drone Launches . | . . . . . . . . . . . . . . . . . Drone Recoveries . | . . . . . . . . . . . . . . . . . Exploration | -11 -10 -10 -10 -9 -8 -8 -8 -7 -7 -7 -6 -6 -6 -5 -4 -4 ------------- Run | Scr Mat Min Exi Min Mat Gar Mat Fac Sto Gar Fac Gar Fac Fac Fac Ext Turns Passed 11815 | 158 307 320 397 234 375 1928 1060 1158 482 1643 672 322 1506 381 380 492 Spaces Moved 7186 | 71 303 180 304 143 183 863 406 516 155 883 496 191 1329 431 434 298 Core 325 | . . 13 . . . . . . . . . 61 116 . 77 58 Treads 1347 | . 29 106 . . . 133 406 516 155 2 . . . . . . Legs 77 | . . . . . . . . . . . . . 18 . . 59 Wheels 2118 | 71 274 3 . . . . . . . 881 496 130 82 . . 181 Hover 3054 | . . 58 304 143 183 730 . . . . . . 848 431 357 . Flight 265 | . . . . . . . . . . . . . 265 . . . Fastest Speed 42 | 80 80 76 76 146 146 146 210 186 203 120 120 50 50 51 42 50 Average Speed 126 | 80 87 134 128 146 146 177 210 195 243 127 120 103 76 86 58 103 Slowest Speed 360 | 80 160 200 146 146 146 216 210 300 300 300 140 150 360 111 300 250 Overloaded Moves . | . . . . . . . . . . . . . . . . . Propulsion Burnouts . | . . . . . . . . . . . . . . . . . Robots Hopped . | . . . . . . . . . . . . . . . . . Cave-ins Triggered 3 | . . . . . . . . . . . . . 2 . 1 . Exploration Rate (%) 36 | 5 59 43 65 30 25 88 35 18 24 80 12 53 34 15 13 19 Regions Visited 16 Branch Regions 5 Pre-discovered Areas 1 | . . . 1 . . . . . . . . . . . . . Known Exits Taken 6 | . . . . . 1 . . 1 1 . 1 . 1 . 1 . Unknown Exits Taken 7 | 1 1 1 1 1 . . 1 . . . . . . 1 . . Scrap Searched 1 | . . 1 . . . . . . . . . . . . . . Spaces Dug 82 | . . . . . . 7 . 5 1 3 . . 48 . 12 6 Terrain Destroyed 230 | . . 5 . . 1 37 . 5 2 72 . 6 51 . 45 6 Melee 75 | . . . . . . . . 5 1 3 . . 48 . 12 6 Projectile 11 | . . . . . 1 . . . 1 . . 6 3 . . . AOE 144 | . . 5 . . . 37 . . . 69 . . . . 33 . Actions | -11 -10 -10 -10 -9 -8 -8 -8 -7 -7 -7 -6 -6 -6 -5 -4 -4 --------- Run | Scr Mat Min Exi Min Mat Gar Mat Fac Sto Gar Fac Gar Fac Fac Fac Ext Total 9133 | 124 340 211 312 168 243 1136 539 594 217 1291 569 292 1684 443 521 449 Wait 591 | 14 7 1 2 26 17 15 49 6 12 91 51 17 212 . 16 55 Move 7171 | 70 302 179 303 142 183 862 405 516 155 882 495 190 1326 430 433 298 Hop . | . . . . . . . . . . . . . . . . . Pick Up 120 | 6 9 . 2 . 12 16 9 10 . 20 5 6 8 4 6 7 Fast Attach 118 | 1 1 3 . . 2 3 3 13 6 13 4 4 32 2 8 23 Attach 62 | 2 1 . 1 . 4 8 1 . 4 13 2 9 2 1 9 5 Detach 42 | . 1 . . . . 3 . . 5 13 . 7 7 . 2 4 Swap 54 | . 1 3 2 . 2 10 8 6 5 9 . 2 2 1 1 2 Drop 111 | 4 11 1 2 . . 7 16 7 . 15 3 6 14 5 15 5 Fire 374 | 27 7 24 . . 23 82 48 28 29 47 7 23 17 . 12 . Melee 155 | . . . . . . . . 8 1 47 . 2 62 . 19 16 Ram . | . . . . . . . . . . . . . . . . . Kick . | . . . . . . . . . . . . . . . . . Crush . | . . . . . . . . . . . . . . . . . Escape Stasis 223 | . . . . . . 130 . . . 68 . 23 2 . . . Rewire 112 | . . . . . . . . . . 73 2 3 . . . 34 Trap . | . . . . . . . . . . . . . . . . . Miscellaneous . | . . . . . . . . . . . . . . . . . Route ------- -11/Scrapyard -10/Materials (discovered 2 exits: [*Min x2]) -10/Mines -10/Exiles -9/Mines -8/Materials -8/Garrison (discovered 3 exits: *Mat x3) -8/Materials -7/Factory (discovered 3 exits: *Sto / Low x2) -7/Storage -7/Garrison (discovered 3 exits: *Fac x3) -6/Factory (discovered 4 exits: *Fac / Low x2 / Gar) -6/Garrison -6/Factory (discovered 6 exits: *Fac x4 / *Low x2) -5/Factory -4/Factory (discovered 5 exits: *Upp x2 / *Ext x2 / Arm) -4/Extension History --------- Turn | Location | Event 16 | -11/Scrapyard | Discovered new exit (range 2) 159 | -11/Scrapyard | Entered Materials 170 | -10/Materials | Central database locked down 322 | -10/Materials | Discovered new exit (range 5) 340 | -10/Materials | Build established: Mutant 393 | -10/Materials | Discovered new exit (range 11) 466 | -10/Materials | Entered Mines 672 | -10/Mines | Assembled infested the area 704 | -10/Mines | Core integrity fell below 50% 704 | -10/Mines | Met 8R-AWN 710 | -10/Mines | Core integrity fell below 20% 736 | -10/Mines | Lost 4 parts (1p2n1w) 783 | -10/Mines | Discovered new exit (range 5) 786 | -10/Mines | Entered Exiles 806 | -10/Exiles | Welcomed by 8R-AWN 818 | -10/Exiles | Met EX-HEX 900 | -10/Exiles | Met EX-BIN 916 | -10/Exiles | Aligned with FarCom system 918 | -10/Exiles | Given EX-Vault access code 951 | -10/Exiles | Opened EX-Vault 960 | -10/Exiles | Found Superbattery 990 | -10/Exiles | Warned to stay clear of 0b10 Research branches 1036 | -10/Exiles | Met EX-DEC 1042 | -10/Exiles | Learned location of Zion (-6) 1096 | -10/Exiles | Discovered new exit (range 10) 1149 | -10/Exiles | Build established: Hauler-Mutant 1183 | -10/Exiles | Left Exiles lab with Superbattery 1183 | -10/Exiles | Entered Mines 1392 | -9/Mines | Discovered new exit (range 6) 1417 | -9/Mines | Entered Materials 1417 | -8/Materials | Evolved 4 slots: Utility x4 1648 | -8/Materials | Garrison activated, responded to threat 1792 | -8/Materials | Identified exit to Garrison 1792 | -8/Materials | Entered Garrison 1836 | -8/Garrison | Triggered checkpoint 2066 | -8/Garrison | Triggered checkpoint 2106 | -8/Garrison | Discovered new exit (range 19) 2160 | -8/Garrison | Triggered checkpoint 2251 | -8/Garrison | Triggered checkpoint 2341 | -8/Garrison | Discovered new exit (range 19) 2469 | -8/Garrison | Triggered checkpoint 2533 | -8/Garrison | Discovered new exit (range 17) 2563 | -8/Garrison | Installed Relay Interface Framework 2598 | -8/Garrison | Triggered checkpoint 2679 | -8/Garrison | Garrison Relay disabled 2878 | -8/Garrison | Garrison Relay disabled 3090 | -8/Garrison | Garrison Relay disabled 3365 | -8/Garrison | Triggered checkpoint 3420 | -8/Garrison | Garrison Relay disabled 3720 | -8/Garrison | Entered Materials 4666 | -8/Materials | Discovered new exit (range 3) 4729 | -8/Materials | Build established: Bothacker-Mutant 4747 | -8/Materials | Core integrity fell below 50% 4780 | -8/Materials | Entered Factory 4780 | -7/Factory | Evolved 2 slots: Propulsion x1, Utility x1 5047 | -7/Factory | Identified exit to Storage 5047 | -7/Factory | Identified exit to Lower Caves 5419 | -7/Factory | Build established: Bothacker-Assassin 5886 | -7/Factory | Build established: Bothacker-Mutant 5938 | -7/Factory | Entered Storage 6297 | -7/Storage | Lost 5 parts (1p2n1u1w) 6376 | -7/Storage | Hacking Suite fried by hacking feedback 6420 | -7/Storage | Identified exit to Garrison 6420 | -7/Storage | Entered Garrison 6604 | -7/Garrison | Core integrity fell below 50% 6643 | -7/Garrison | Lost 7 parts (1p2n4w) 6684 | -7/Garrison | Triggered checkpoint 6867 | -7/Garrison | Triggered checkpoint 6888 | -7/Garrison | Triggered checkpoint 7115 | -7/Garrison | Discovered new exit (range 13) 7147 | -7/Garrison | Expanded RIF knowledge: Coupler Efficiency 7310 | -7/Garrison | Triggered checkpoint 7337 | -7/Garrison | Garrison Relay disabled 7680 | -7/Garrison | Triggered checkpoint 7748 | -7/Garrison | Triggered checkpoint 7770 | -7/Garrison | Garrison Relay disabled 7821 | -7/Garrison | Discovered new exit (range 13) 7892 | -7/Garrison | Triggered checkpoint 7932 | -7/Garrison | Discovered new exit (range 8) 7978 | -7/Garrison | Triggered checkpoint 8001 | -7/Garrison | Garrison Relay disabled 8063 | -7/Garrison | Entered Factory 8063 | -6/Factory | Accompanied by 5 allies 8063 | -6/Factory | Evolved 2 slots: Utility x2 8172 | -6/Factory | Fabricated Hcp. Storage Unit (x1) 8456 | -6/Factory | Found Prototype Processor 8456 | -6/Factory | Identified Exp. Signal Interpreter 8463 | -6/Factory | Found Exp. Signal Interpreter 8537 | -6/Factory | Identified exit to Lower Caves 8618 | -6/Factory | Discovered new exit (range 15) 8651 | -6/Factory | Identified exit to Garrison 8688 | -6/Factory | Identified exit to Factory 8735 | -6/Factory | Entered Garrison 8735 | -6/Garrison | Accompanied by 7 allies 8741 | -6/Garrison | Expanded RIF knowledge: Coupler Efficiency 8774 | -6/Garrison | Triggered checkpoint 8799 | -6/Garrison | Garrison Relay disabled 8930 | -6/Garrison | Triggered checkpoint 8934 | -6/Garrison | Triggered checkpoint 8947 | -6/Garrison | Spotted B-75 Beast 9011 | -6/Garrison | Core integrity fell below 50% 9044 | -6/Garrison | Lost 12 parts (1p3n1u7w) 9050 | -6/Garrison | Discovered new exit (range 15) 9057 | -6/Garrison | Identified exit to Factory 9057 | -6/Garrison | Entered Factory 9108 | -6/Factory | Found Prototype Processor 9108 | -6/Factory | Identified Exp. Targeting Computer 9110 | -6/Factory | Found Faulty Exp. Targeting Computer 9187 | -6/Factory | Core integrity fell below 20% 9204 | -6/Factory | System Shield fried by hacking feedback 9248 | -6/Factory | Build established: Mutant 9375 | -6/Factory | Discovered exit to Lower Caves (range 12) 9783 | -6/Factory | Build established: Scavenger-Mutant 10119 | -6/Factory | Discovered exit to Lower Caves (range 14) 10193 | -6/Factory | Crushed by falling debris 10194 | -6/Factory | System corruption reached 10% 10199 | -6/Factory | Crushed by falling debris 10230 | -6/Factory | Lost 5 parts (3u2w) 10268 | -6/Factory | Found Powered Armor 10563 | -6/Factory | Entered another Factory area 10563 | -5/Factory | Accompanied by 1 ally 10563 | -5/Factory | Evolved 2 slots: Power x1, Utility x1 10872 | -5/Factory | Discovered new exit (range 4) 10944 | -5/Factory | Entered another Factory area 10944 | -4/Factory | Evolved 2 slots: Propulsion x2 10970 | -4/Factory | Build established: Assassin 11021 | -4/Factory | Identified exit to Upper Caves 11021 | -4/Factory | Identified exit to Extension 11021 | -4/Factory | Identified exit to Armory 11055 | -4/Factory | Found Unknown Device 11118 | -4/Factory | Identified Quantum Capacitor 11262 | -4/Factory | Crushed by falling debris 11296 | -4/Factory | Destroyed 9 combat bots 11323 | -4/Factory | Core integrity fell below 50% 11324 | -4/Factory | Entered Extension 11344 | -4/Extension | Rescued a captive Derelict 11353 | -4/Extension | Lost 15 parts (2p2n8u3w) 11391 | -4/Extension | Core integrity fell below 20% 11760 | -4/Extension | Build established: Scavenger-Mutant 11816 | -4/Extension | Destroyed by H-77 Assassin with Coil Gun Last Messages --------------- 11731_ Sneak attack on R-10 Processor. 11731_ R-10 Processor destroyed. 11732_ Acquired 62 matter. 11740_ Acquired 10 matter. 11750_ System corrupted: Component data lost. 11771_ TTD1UBXW0S OD/5W8|MSX|UWX0,/HU Q NR6V 11793_ &6 GFQFHOL#N42CZ2 4R| T>O5SOALFAYUT 11795_ U-05 Engineer builds a Wall. 11800_ System corrupted: Phasing Sabre targeting data glitched. 11801_ U-05 Engineer builds a Wall. 11802_ O-16 Technician sends out distress signal. 11806_ Sneak attack on U-05 Engineer. 11806_ U-05 Engineer destroyed. 11808_ ALERT: Hostiles spotted, dispatching reinforcements to Terminal E003. 11810_ Slug penetrates Wall. 11810_ Penetrated by Slug. 11812_ Hpw. Shotgun severed. 11813_ Penetrated by Slug. 11813_ Slug penetrates Wall. 11813_ Penetrated by Slug. Map ----- +----------------------------------------------------+ | | | | | | | | | | | | | | | | | | | | | | | | | | | | | | | | | | | | | ?????????????????????????????????????????????????? | | ???#######???????????????????????????????????????? | | ???# #???????????????????????????????????????? | | #### #???????????????????????????????????????? | | ]== #?????????????#######???????????????????? | | #### #?????????????? h????????????????????? | | ???# #??????????????##h#?????????????????????? | | ???## ##??????????????#@#####??????????????????? | | ????# #########+#######=%! #??????????????????? | | ????# != #??????????????????? | | ????# T ????????????? | | #???# ### #????????????? | | ######+################## #????##??????YY????? | | # #???????????### ###??????????????????? | | # #?????????????? #????????????????????? | | # #?????????????? ????????????????????? | | # #??????????????###???????????????????? | | # #????????????????????????????????????? | | # #????????????????????????????????????? | | # #????????????????????????????????????? | | #############????????????????????????????????????? | | ?????????????????????????????????????????????????? | | ?????????????????????????????????????????????????? | | ?????????????????????????????????????????????????? | | ?????????????????????????????????????????????????? | | ?????????????????????????????????????????????????? | | ?????????????????????????????????????????????????? | | ?????????????????????????????????????????????????? | | ?????????????????????????????????????????????????? | | ?????????????????????????????????????????????????? | | ?????????????????????????????????????????????????? | | ?????????????????????????????????????????????????? | +----------------------------------------------------+ Best States ------------- Heat Dissipation 79 Energy Generation 31 Energy Capacity 1090 Matter Stores 300 Matter Capacity 300 Sight Range 20 Robot Scan Range 13 Terrain Scan Range 24 Terrain Scan Density 210 Jamming Range 8 Power Amplification 30 Additional Mass Support 16 Armor Coverage 1050 Resistance: KI 20 Thermal Conversion 60 Evasion (%) 56 Targeting Accuracy 8 Recoil Reduction 3 Kinecelleration 40 Offensive Hacking 10 Defensive Hacking 10 Item Schematics ----------------- Hcp. Storage Unit | -10/Materials | Hacked Hcp. Battery | -10/Materials | Hacked Hcp. Matter Pod | -8/Materials | Hacked Hacking Suite | -8/Materials | Scanalyzed System Shield | -7/Factory | Scanalyzed System Backup Module | -7/Factory | Scanalyzed Imp. Medium Armor Plating | -7/Factory | Scanalyzed Gauss Rifle | -7/Factory | Scanalyzed Imp. Datajack | -7/Factory | Scanalyzed Robot Schematics ------------------ None Fabricated ------------ Hcp. Storage Unit | x1 | -6/Factory Alien Tech Used ----------------- None Achievements -------------- Origins Challenges ------------ None Game ------ Seed DeliveryCryofiberPod Manual? 0 Play Time 02:02:57 Cumulative 214.0 hours Start 2020.05.24 @ 17:32:33 End 2020.05.24 @ 20:22:05 Sessions 3 Manual Loads 0 Difficulty Rogue Special Mode None Game No. 274 Rogue 263 Adventurer 11 Explorer 0 Win Type - Total 0 Types 0/0/0/0/0/0/0 Lore% 51 Gallery% 65 Achievement% 45 Wizard Run 0 Options --------- ASCII 0 Keyboard 1 Movement Numpad Keybinds 0 Fullscreen 1 Font 12/Terminus Map View 83x54 Tactical HUD 1 Map Filters NONE Filters NONE Steam 1 RUN: f8a08c60-015c-44a9-84d1-b298ac6415d6